[Event "ESP-ch Rapid 2018"]
[Site "Linares"]
[Date "2018.08.19"]
[Round "8"]
[White "Estremera Panos, Sergio"]
[Black "Silva Rodriguez, Fernando"]
[Result "0-1"]
[ECO "D20"]
[WhiteElo "2337"]
[BlackElo "2239"]
[Annotator "NA"]
[PlyCount "62"]
[EventDate "2018.08.19"]
[EventType "team-tourn"]
[EventCountry "ESP"]
[SourceTitle "playchess.com"]
[Source "ChessBase"]
[SourceQuality "1"]
[TimeControl "900+5"]

1. d4 {[%emt 0:00:00]} d5 {[%emt 0:00:00]} 2. c4 {[%emt 0:00:02]} dxc4 {[%emt 0:00:00]} 3. e3 {[%emt 0:00:04]} b5 {[%emt 0:00:01]} 4. a4 {[%emt 0:00:09]} b4 {[%emt 0:00:02]} 5. Bxc4 {[%emt 0:00:04]} e6 {[%emt 0:00:02]} 6. Nf3 {[%emt 0:00:26]} Nf6 {[%emt 0:00:02]} 7. O-O {[%emt 0:00:14]} Be7 {[%emt 0:00:03]} 8. Qe2 {[%emt 0:00:22]} O-O {[%emt 0:00:03]} 9. e4 {[%emt 0:00:16]} Bb7 {[%emt 0:00:02]} 10. Nbd2 {[%emt 0:00:02]} c5 {[%emt 0:00:07]} 11. e5 {[%emt 0:00:13]} Nd5 {[%emt 0:00:03]} 12. Ne4 {[%emt 0:00:03]} Nd7 {[%emt 0:00:03]} 13. a5 {[%emt 0:00:14]} Rc8 {[%emt 0:00:03]} 14. Rd1 {[%emt 0:00:12]} cxd4 {[%emt 0:00:06]} 15. Rxd4 {[%emt 0:00:15]} Qc7 {[%emt 0:00:06]} 16. Ng3 {[%emt 0:00:46]} Rfd8 {[%emt 0:00:19]} 17. Bd2 {[%emt 0:00:40]} Nf8 {[%emt 0:00:44]} 18. h4 {[%emt 0:00:19]} Bc5 {[%emt 0:02:49]} 19. Rg4 {[%emt 0:00:14]} Kh8 {[%emt 0:00:04]} 20. h5 {[%emt 0:00:18]} h6 {[%emt 0:00:29]} 21. Ne4 {[%emt 0:01:54]} Be7 {[%emt 0:00:04]} 22. b3 {[%emt 0:00:52]} Nd7 {[%emt 0:00:17]} 23. Ng3 {[%emt 0:02:02]} Nc3 {[%emt 0:00:38]} 24. Qe3 {[%emt 0:02:17]} Bf8 {[%emt 0:04:05]} 25. Re1 {[%emt 0:00:41]} Qxa5 {[%emt 0:01:01]} 26. Qf4 {[%emt 0:00:21]} Rc7 {[%emt 0:01:04]} 27. Ne4 {[%emt 0:01:37]} Nxe4 {[%emt 0:00:14]} 28. Rxe4 {[%emt 0:00:01]} Bxe4 {[%emt 0:00:21]} 29. Qxe4 Nxe5 {[%emt 0:02:40]} 30. Nxe5 {[%emt 0:00:31]} Rxd2 {[%emt 0:00:02]} 31. Qa8 {[%emt 0:01:18]} Rd1+ {[%emt 0:00:42]} 0-1

[Event "ESP-ch Rapid 2018"]
[Site "Linares"]
[Date "2018.08.19"]
[Round "8"]
[White "Calzetta Ruiz, Monica"]
[Black "Sanjuan Garcia, Miguel"]
[Result "0-1"]
[ECO "B81"]
[WhiteElo "2302"]
[BlackElo "2115"]
[Annotator "NA"]
[PlyCount "70"]
[EventDate "2018.08.19"]
[EventType "team-tourn"]
[EventCountry "ESP"]
[SourceTitle "playchess.com"]
[Source "ChessBase"]
[SourceQuality "1"]
[TimeControl "900+5"]

1. e4 {[%emt 0:00:00]} c5 {[%emt 0:00:00]} 2. Nf3 {[%emt 0:00:00]} e6 {[%emt 0:00:00]} 3. d4 {[%emt 0:00:00]} cxd4 {[%emt 0:00:00]} 4. Nxd4 {[%emt 0:00:01]} Nf6 {[%emt 0:00:01]} 5. Nc3 {[%emt 0:00:01]} d6 {[%emt 0:00:00]} 6. g4 {[%emt 0:00:12]} e5 {[%emt 0:00:02]} 7. Nf5 {[%emt 0:00:04]} h5 {[%emt 0:00:02]} 8. g5 {[%emt 0:00:46]} Nxe4 {[%emt 0:00:02]} 9. Nxg7+ {[%emt 0:00:01]} Bxg7 {[%emt 0:00:02]} 10. Nxe4 {[%emt 0:00:01]} d5 {[%emt 0:00:10]} 11. Nf6+ {[%emt 0:00:09]} Bxf6 {[%emt 0:00:04]} 12. gxf6 {[%emt 0:00:02]} Nc6 {[%emt 0:00:10]} 13. Bg5 {[%emt 0:00:11]} Qa5+ {[%emt 0:01:08]} 14. c3 {[%emt 0:01:00]} Bg4 {[%emt 0:00:42]} 15. Be2 {[%emt 0:00:19]} Bxe2 {[%emt 0:00:04]} 16. Qxe2 {[%emt 0:00:02]} O-O-O {[%emt 0:00:04]} 17. h4 {[%emt 0:01:14]} e4 {[%emt 0:02:48]} 18. b4 {[%emt 0:06:31]} Qa3 {[%emt 0:01:00]} 19. O-O {[%emt 0:00:25]} Ne5 {[%emt 0:00:43]} 20. Bf4 {[%emt 0:01:06]} Nf3+ {[%emt 0:00:03]} 21. Kh1 {[%emt 0:00:01]} Qa6 {[%emt 0:00:40]} 22. Qxa6 {[%emt 0:00:59]} bxa6 {[%emt 0:00:01]} 23. c4 {[%emt 0:00:38]} d4 {[%emt 0:00:08]} 24. b5 {[%emt 0:00:08]} Kb7 {[%emt 0:00:48]} 25. bxa6+ {[%emt 0:00:02]} Kxa6 {[%emt 0:00:00]} 26. Rab1 {[%emt 0:00:06]} Rhg8 {[%emt 0:00:12]} 27. Rb3 {[%emt 0:00:31]} Rg4 {[%emt 0:00:09]} 28. Bg3 {[%emt 0:01:12]} Nd2 {[%emt 0:00:02]} 29. Ra3+ {[%emt 0:00:02]} Kb7 {[%emt 0:00:01]} 30. Rc1 {[%emt 0:00:12]} e3 {[%emt 0:01:07]} 31. c5 {[%emt 0:00:01]} Rc8 {[%emt 0:00:16]} 32. Rd3 {[%emt 0:00:25]} Ne4 {[%emt 0:00:13]} 33. Rb3+ {[%emt 0:00:13]} Ka8 {[%emt 0:00:03]} 34. Be5 {[%emt 0:01:01]} Nxf2+ 35. Kh2 Rcg8 {[%emt 0:00:48]} 0-1

[Event "ESP-ch Rapid 2018"]
[Site "Linares"]
[Date "2018.08.19"]
[Round "8"]
[White "Galiana Fernandez, Adrian"]
[Black "Guadamuro Torrente, Anabel"]
[Result "0-1"]
[ECO "C65"]
[WhiteElo "2291"]
[BlackElo "2145"]
[Annotator "NA"]
[PlyCount "98"]
[EventDate "2018.08.19"]
[EventType "team-tourn"]
[EventCountry "ESP"]
[SourceTitle "playchess.com"]
[Source "ChessBase"]
[SourceQuality "1"]
[TimeControl "900+5"]

1. e4 {[%emt 0:00:00]} e5 {[%emt 0:00:00]} 2. Nf3 {[%emt 0:00:00]} Nc6 {[%emt 0:00:00]} 3. Bb5 {[%emt 0:00:00]} Nf6 {[%emt 0:00:02]} 4. d3 {[%emt 0:00:00]} d6 {[%emt 0:00:04]} 5. c3 {[%emt 0:00:13]} g6 {[%emt 0:00:24]} 6. h3 {[%emt 0:00:34]} Bg7 {[%emt 0:00:02]} 7. O-O {[%emt 0:00:07]} O-O {[%emt 0:00:02]} 8. Bg5 {[%emt 0:00:01]} h6 {[%emt 0:00:21]} 9. Bh4 {[%emt 0:00:17]} a6 {[%emt 0:01:31]} 10. Bxc6 {[%emt 0:00:08]} bxc6 {[%emt 0:00:02]} 11. Bxf6 {[%emt 0:00:03]} Qxf6 {[%emt 0:00:05]} 12. Nbd2 {[%emt 0:00:13]} a5 {[%emt 0:00:20]} 13. Qa4 {[%emt 0:00:16]} c5 {[%emt 0:00:13]} 14. Ne1 {[%emt 0:01:08]} Qg5 {[%emt 0:00:24]} 15. Ndf3 {[%emt 0:00:10]} Qh5 {[%emt 0:00:17]} 16. b4 {[%emt 0:01:30]} f5 {[%emt 0:00:43]} 17. bxc5 {[%emt 0:00:04]} dxc5 {[%emt 0:01:51]} 18. Qc4+ {[%emt 0:00:01]} Kh7 {[%emt 0:01:06]} 19. Qxc5 {[%emt 0:00:02]} fxe4 {[%emt 0:00:47]} 20. dxe4 {[%emt 0:00:02]} Bb7 {[%emt 0:01:01]} 21. Qe3 {[%emt 0:00:13]} g5 {[%emt 0:00:49]} 22. Rb1 {[%emt 0:00:05]} Ba6 {[%emt 0:00:11]} 23. Nh2 {[%emt 0:00:36]} Bxf1 {[%emt 0:00:11]} 24. Nxf1 {[%emt 0:00:02]} Rab8 {[%emt 0:00:26]} 25. Ng3 {[%emt 0:00:16]} Qf7 {[%emt 0:00:04]} 26. Rd1 {[%emt 0:00:44]} Rfd8 {[%emt 0:00:25]} 27. Rxd8 {[%emt 0:00:17]} Rxd8 {[%emt 0:00:01]} 28. Qe2 {[%emt 0:00:01]} Qd7 {[%emt 0:00:12]} 29. Kf1 {[%emt 0:00:34]} a4 {[%emt 0:00:34]} 30. Nf5 {[%emt 0:00:05]} Qc6 {[%emt 0:01:56]} 31. h4 {[%emt 0:00:01]} gxh4 {[%emt 0:01:12]} 32. c4 {[%emt 0:01:04]} h3 {[%emt 0:00:29]} 33. gxh3 {[%emt 0:00:02]} a3 {[%emt 0:00:41]} 34. Nc2 {[%emt 0:00:22]} Bf8 {[%emt 0:00:25]} 35. Nce3 {[%emt 0:00:12]} Rb8 {[%emt 0:00:38]} 36. Ng4 {[%emt 0:01:57]} Rb1+ {[%emt 0:00:07]} 37. Kg2 {[%emt 0:00:02]} Rb2 {[%emt 0:00:13]} 38. Qd3 {[%emt 0:00:06]} Qg6 {[%emt 0:00:11]} 39. Qd7+ {[%emt 0:00:38]} Kh8 {[%emt 0:00:07]} 40. Qd8 {[%emt 0:00:11]} Qf7 {[%emt 0:00:06]} 41. Kf3 {[%emt 0:01:49]} h5 {[%emt 0:00:04]} 42. Nxe5 Qg8 {[%emt 0:00:06]} 43. Nf7+ {[%emt 0:01:03]} Qxf7 {[%emt 0:00:04]} 44. Kf4 {[%emt 0:00:10]} Kh7 {[%emt 0:00:02]} 45. f3 {[%emt 0:00:05]} Bh6+ {[%emt 0:00:03]} 46. Ke5 {[%emt 0:00:11]} Bg7+ {[%emt 0:00:01]} 47. Kf4 {[%emt 0:00:04]} Qf6 {[%emt 0:00:02]} 48. Qe8 {[%emt 0:00:04]} Bh6+ {[%emt 0:00:03]} 49. Kg3 {[%emt 0:00:05]} Qg5# {[%emt 0:00:01]} 0-1

[Event "ESP-ch Rapid 2018"]
[Site "Linares"]
[Date "2018.08.19"]
[Round "8"]
[White "Buendia Pinar, Alvaro"]
[Black "Espinosa Aranda, Angel"]
[Result "1-0"]
[ECO "B27"]
[WhiteElo "2278"]
[BlackElo "2451"]
[Annotator "ChessBase"]
[PlyCount "99"]
[EventDate "2018.08.19"]
[EventType "team-tourn"]
[EventCountry "ESP"]
[SourceTitle "playchess.com"]
[Source "ChessBase"]
[SourceQuality "1"]
[TimeControl "900+5"]

1. e4 {[%emt 0:00:00]} c5 {[%emt 0:00:05]} 2. Nf3 {[%emt 0:00:00]} g6 {[%emt 0:00:02]} 3. c3 {[%emt 0:00:24]} Nf6 {[%emt 0:00:02]} 4. Bd3 {[%emt 0:00:19]} Bg7 {[%emt 0:00:06]} 5. Bc2 {[%emt 0:00:07]} O-O {[%emt 0:00:03]} 6. O-O {[%emt 0:00:13]} Nc6 {[%emt 0:00:01]} 7. d4 {[%emt 0:00:43]} cxd4 {[%emt 0:00:05]} 8. cxd4 {[%emt 0:00:02]} d5 {[%emt 0:00:12]} 9. e5 {[%emt 0:00:20]} Ne4 {[%emt 0:00:01]} 10. Nc3 Bf5 {[%emt 0:00:07]} 11. Re1 {[%emt 0:01:22]} Nxc3 {[%emt 0:01:29]} 12. bxc3 Bxc2 13. Qxc2 {[%emt 0:00:11]} Rc8 {[%emt 0:00:06]} 14. Qd3 {[%emt 0:02:11]} Qd7 {[%emt 0:00:17]} 15. Ng5 {[%emt 0:01:10]} Qf5 {[%emt 0:03:03]} 16. Qxf5 {[%emt 0:00:44]} gxf5 {[%emt 0:00:01]} 17. e6 {[%emt 0:00:10]} fxe6 {[%emt 0:00:01]} 18. Nxe6 {[%emt 0:00:06]} Rfe8 {[%emt 0:00:01]} 19. Rb1 {[%emt 0:00:25]} b6 {[%emt 0:00:13]} 20. Rb5 {[%emt 0:00:23]} Rcd8 {[%emt 0:01:34]} 21. Nxd8 {[%emt 0:00:10]} Rxd8 {[%emt 0:00:01]} 22. Re6 {[%emt 0:00:13]} Rc8 {[%emt 0:00:09]} 23. Rxd5 {[%emt 0:00:46]} Nxd4 {[%emt 0:00:01]} 24. Rxe7 {[%emt 0:00:06]} Bf6 {[%emt 0:00:19]} 25. Re3 {[%emt 0:00:53]} f4 {[%emt 0:00:14]} 26. Re4 {[%emt 0:00:38]} Rxc3 {[%emt 0:00:09]} 27. Bxf4 {[%emt 0:00:15]} Nc6 {[%emt 0:01:13]} 28. g3 {[%emt 0:00:33]} Kf7 {[%emt 0:00:26]} 29. Rd7+ {[%emt 0:00:06]} Kg6 {[%emt 0:00:05]} 30. Rd6 {[%emt 0:00:05]} Nd8 {[%emt 0:00:54]} 31. Be5 {[%emt 0:00:51]} Rc1+ {[%emt 0:00:01]} 32. Kg2 {[%emt 0:00:03]} Kf5 {[%emt 0:00:01]} 33. Bxf6 {[%emt 0:00:09]} Kxe4 {[%emt 0:00:13]} 34. Rd4+ {[%emt 0:00:18]} Kf5 {[%emt 0:00:14]} 35. Bxd8 {[%emt 0:00:02]} Ke5 {[%emt 0:00:39]} 36. Ra4 {[%emt 0:00:07]} Rc8 {[%emt 0:00:01]} 37. Bg5 {[%emt 0:00:02]} a5 {[%emt 0:00:06]} 38. Be3 {[%emt 0:00:16]} Rc6 {[%emt 0:00:04]} 39. Ra3 {[%emt 0:00:06]} Kd5 {[%emt 0:00:12]} 40. Rb3 {[%emt 0:00:02]} Rc2 {[%emt 0:00:12]} 41. Bxb6 {[%emt 0:00:09]} a4 {[%emt 0:00:03]} 42. Ra3 {[%emt 0:00:18]} Rc4 {[%emt 0:00:01]} 43. Be3 {[%emt 0:00:06]} h5 {[%emt 0:00:07]} 44. Kf3 {[%emt 0:00:07]} Kc6 {[%emt 0:00:05]} 45. Rd3 {[%emt 0:00:21]} Rc2 {[%emt 0:00:15]} 46. a3 {[%emt 0:00:02]} Rb2 {[%emt 0:00:13]} 47. h3 {[%emt 0:00:03]} Kb5 {[%emt 0:00:10]} 48. Rd5+ {[%emt 0:00:15]} Kc4 {[%emt 0:00:11]} 49. Rd4+ {[%emt 0:00:02]} Kb5 {[%emt 0:00:01]} 50. Rb4+ {[%emt 0:00:01]} 1-0

[Event "ESP-ch Rapid 2018"]
[Site "Linares"]
[Date "2018.08.19"]
[Round "8"]
[White "Jimenez Martinez, Jose Vicente"]
[Black "Campos Gambuti, Luis Maria"]
[Result "1-0"]
[ECO "D20"]
[WhiteElo "2243"]
[BlackElo "2382"]
[Annotator "NA"]
[PlyCount "57"]
[EventDate "2018.08.19"]
[EventType "team-tourn"]
[EventCountry "ESP"]
[SourceTitle "playchess.com"]
[Source "ChessBase"]
[SourceQuality "1"]
[TimeControl "900+5"]

1. d4 {[%emt 0:00:00]} d5 {[%emt 0:00:00]} 2. c4 {[%emt 0:00:00]} dxc4 {[%emt 0:00:00]} 3. e3 {[%emt 0:00:01]} c5 {[%emt 0:00:23]} 4. Bxc4 {[%emt 0:00:14]} cxd4 {[%emt 0:00:28]} 5. Nf3 {[%emt 0:00:43]} Qc7 {[%emt 0:00:02]} 6. Qb3 {[%emt 0:00:57]} e6 {[%emt 0:00:02]} 7. exd4 {[%emt 0:00:12]} Nc6 {[%emt 0:00:02]} 8. O-O {[%emt 0:00:13]} Na5 {[%emt 0:00:21]} 9. Bb5+ {[%emt 0:00:19]} Bd7 {[%emt 0:00:02]} 10. Qa4 {[%emt 0:00:10]} Nc6 {[%emt 0:00:12]} 11. Nc3 {[%emt 0:00:43]} Nf6 {[%emt 0:00:36]} 12. Bg5 {[%emt 0:00:40]} Be7 {[%emt 0:00:01]} 13. d5 {[%emt 0:02:31]} Nxd5 {[%emt 0:02:29]} 14. Nxd5 {[%emt 0:00:10]} exd5 {[%emt 0:00:02]} 15. Rfe1 {[%emt 0:00:11]} f6 {[%emt 0:00:03]} 16. Bf4 {[%emt 0:00:04]} Qc8 {[%emt 0:02:01]} 17. Bd6 {[%emt 0:00:49]} Kd8 {[%emt 0:00:01]} 18. Qa3 {[%emt 0:01:32]} Bxd6 {[%emt 0:00:14]} 19. Qxd6 {[%emt 0:00:02]} Qc7 {[%emt 0:00:41]} 20. Qxd5 {[%emt 0:00:13]} Kc8 {[%emt 0:00:25]} 21. Rac1 {[%emt 0:00:32]} a6 {[%emt 0:00:08]} 22. Bxc6 {[%emt 0:00:23]} Bxc6 {[%emt 0:00:04]} 23. Qc4 {[%emt 0:00:30]} Rd8 {[%emt 0:00:57]} 24. Nd4 {[%emt 0:00:06]} Qf4 {[%emt 0:00:53]} 25. Qe6+ Kb8 {[%emt 0:01:26]} 26. Nxc6+ {[%emt 0:00:57]} bxc6 {[%emt 0:00:02]} 27. Qxc6 {[%emt 0:00:10]} Qd6 {[%emt 0:00:55]} 28. Qa4 {[%emt 0:01:08]} Ra7 {[%emt 0:00:20]} 29. Rcd1 {[%emt 0:00:25]} 1-0

[Event "ESP-ch Rapid 2018"]
[Site "Linares"]
[Date "2018.08.19"]
[Round "8"]
[White "Orantes Taboada, Francisco"]
[Black "Carretero Ortiz, Francisco"]
[Result "1-0"]
[ECO "A40"]
[WhiteElo "2242"]
[BlackElo "2241"]
[Annotator "NA"]
[PlyCount "84"]
[EventDate "2018.08.19"]
[EventType "team-tourn"]
[EventCountry "ESP"]
[SourceTitle "playchess.com"]
[Source "ChessBase"]
[SourceQuality "1"]
[TimeControl "900+5"]

1. d4 {[%emt 0:00:00]} Nc6 {[%emt 0:00:00]} 2. Nf3 {[%emt 0:00:00]} d5 {[%emt 0:00:00]} 3. g3 {[%emt 0:00:01]} Bg4 {[%emt 0:00:09]} 4. Bg2 {[%emt 0:00:02]} e6 {[%emt 0:00:06]} 5. O-O {[%emt 0:00:10]} Bd6 {[%emt 0:00:15]} 6. c4 {[%emt 0:00:02]} dxc4 {[%emt 0:00:18]} 7. Nc3 {[%emt 0:00:01]} Nge7 {[%emt 0:02:46]} 8. Qa4 {[%emt 0:00:24]} Nd5 {[%emt 0:01:31]} 9. Qxc4 {[%emt 0:01:21]} Nb6 {[%emt 0:00:04]} 10. Qb3 {[%emt 0:00:07]} Bxf3 {[%emt 0:00:11]} 11. exf3 {[%emt 0:00:04]} Nxd4 {[%emt 0:00:07]} 12. Qd1 {[%emt 0:00:03]} Nc6 {[%emt 0:00:30]} 13. f4 {[%emt 0:00:03]} O-O {[%emt 0:00:17]} 14. b3 {[%emt 0:00:11]} e5 {[%emt 0:00:13]} 15. f5 {[%emt 0:00:13]} Bb4 {[%emt 0:02:07]} 16. Bb2 {[%emt 0:01:16]} Qxd1 {[%emt 0:00:03]} 17. Raxd1 {[%emt 0:00:06]} Rad8 {[%emt 0:00:03]} 18. Nd5 {[%emt 0:00:37]} Bd6 {[%emt 0:01:51]} 19. Nc3 {[%emt 0:02:03]} Nd4 {[%emt 0:00:55]} 20. Bxb7 {[%emt 0:00:02]} Nxf5 {[%emt 0:00:51]} 21. Nb5 {[%emt 0:00:01]} a5 {[%emt 0:00:50]} 22. Be4 {[%emt 0:00:13]} Ne7 {[%emt 0:00:09]} 23. Rc1 {[%emt 0:00:54]} f5 {[%emt 0:00:20]} 24. Bg2 {[%emt 0:00:02]} Ned5 {[%emt 0:00:43]} 25. Rfd1 {[%emt 0:00:04]} e4 {[%emt 0:00:02]} 26. Bf1 {[%emt 0:00:17]} e3 {[%emt 0:01:51]} 27. Bg2 {[%emt 0:00:21]} exf2+ {[%emt 0:00:36]} 28. Kxf2 {[%emt 0:00:02]} Nf6 {[%emt 0:00:05]} 29. Nxd6 {[%emt 0:01:05]} Rxd6 {[%emt 0:00:06]} 30. Rxd6 {[%emt 0:00:17]} cxd6 {[%emt 0:00:01]} 31. Rc6 {[%emt 0:00:10]} Ne4+ {[%emt 0:00:02]} 32. Ke3 {[%emt 0:00:22]} Nd5+ {[%emt 0:00:05]} 33. Kd4 {[%emt 0:00:15]} Nb4 {[%emt 0:00:04]} 34. Rc7 {[%emt 0:00:15]} Nxa2 {[%emt 0:00:04]} 35. Kc4 {[%emt 0:01:16]} Rf7 {[%emt 0:00:01]} 36. Rc8+ {[%emt 0:00:02]} Rf8 {[%emt 0:00:01]} 37. Rc7 {[%emt 0:01:53]} d5+ {[%emt 0:00:01]} 38. Kxd5 {[%emt 0:02:28]} Nb4+ {[%emt 0:00:01]} 39. Ke6 {[%emt 0:00:03]} Ng5+ {[%emt 0:00:11]} 40. Kd6 {[%emt 0:00:02]} Nf7+ {[%emt 0:00:20]} 41. Ke7 {[%emt 0:00:10]} Nd3 {[%emt 0:00:19]} 42. Bd4 {[%emt 0:00:08]} Nb4 1-0

[Event "ESP-ch Rapid 2018"]
[Site "Linares"]
[Date "2018.08.19"]
[Round "8"]
[White "Blazquez Gomez, Juan Carlos"]
[Black "Marino Bravo, Marco Antonio"]
[Result "1-0"]
[ECO "C00"]
[WhiteElo "2240"]
[BlackElo "2083"]
[Annotator "NA"]
[PlyCount "111"]
[EventDate "2018.08.19"]
[EventType "team-tourn"]
[EventCountry "ESP"]
[SourceTitle "playchess.com"]
[Source "ChessBase"]
[SourceQuality "1"]
[TimeControl "900+5"]

1. e4 {[%emt 0:00:00]} e6 {[%emt 0:00:00]} 2. d3 {[%emt 0:00:00]} d5 {[%emt 0:00:01]} 3. Nd2 {[%emt 0:00:00]} Nf6 {[%emt 0:00:05]} 4. Ngf3 {[%emt 0:00:02]} Be7 {[%emt 0:00:10]} 5. g3 {[%emt 0:00:02]} c5 {[%emt 0:00:27]} 6. Bg2 {[%emt 0:00:03]} Nc6 {[%emt 0:00:05]} 7. O-O {[%emt 0:00:03]} O-O {[%emt 0:00:06]} 8. e5 {[%emt 0:00:02]} Nd7 {[%emt 0:00:20]} 9. Re1 {[%emt 0:00:04]} f6 {[%emt 0:01:22]} 10. exf6 {[%emt 0:00:25]} Nxf6 {[%emt 0:00:03]} 11. c3 {[%emt 0:02:40]} Bd6 {[%emt 0:03:39]} 12. d4 {[%emt 0:00:30]} cxd4 {[%emt 0:01:40]} 13. cxd4 {[%emt 0:00:29]} Qb6 {[%emt 0:00:09]} 14. Nb3 {[%emt 0:00:15]} Bd7 {[%emt 0:00:10]} 15. h3 {[%emt 0:00:42]} Ne4 {[%emt 0:00:16]} 16. Be3 {[%emt 0:00:08]} Qc7 {[%emt 0:01:30]} 17. Nbd2 {[%emt 0:01:45]} Nf6 {[%emt 0:01:00]} 18. Rc1 {[%emt 0:00:09]} Rae8 {[%emt 0:00:05]} 19. a3 {[%emt 0:00:18]} Qb8 {[%emt 0:00:43]} 20. b4 {[%emt 0:00:10]} e5 {[%emt 0:00:18]} 21. dxe5 {[%emt 0:01:47]} Nxe5 {[%emt 0:00:06]} 22. Nxe5 {[%emt 0:01:18]} Bxe5 {[%emt 0:00:03]} 23. Bc5 {[%emt 0:01:05]} Bd6 {[%emt 0:01:01]} 24. Nb3 {[%emt 0:00:19]} b6 {[%emt 0:00:15]} 25. Bxd5+ {[%emt 0:00:23]} Kh8 {[%emt 0:00:14]} 26. Bxd6 {[%emt 0:00:09]} Qxd6 {[%emt 0:00:11]} 27. Bg2 {[%emt 0:00:04]} Qxd1 {[%emt 0:00:19]} 28. Rexd1 {[%emt 0:00:19]} Ba4 {[%emt 0:00:03]} 29. Rd3 {[%emt 0:00:08]} Rc8 {[%emt 0:00:17]} 30. Rxc8 {[%emt 0:00:50]} Rxc8 {[%emt 0:00:01]} 31. Nd2 {[%emt 0:00:24]} Kg8 {[%emt 0:00:19]} 32. Ne4 {[%emt 0:00:14]} Nxe4 {[%emt 0:00:23]} 33. Bxe4 {[%emt 0:00:03]} Rc1+ {[%emt 0:00:11]} 34. Kg2 {[%emt 0:00:07]} Ra1 {[%emt 0:00:03]} 35. Bd5+ {[%emt 0:00:07]} Kf8 {[%emt 0:00:01]} 36. g4 {[%emt 0:00:04]} Ke7 {[%emt 0:00:12]} 37. f4 {[%emt 0:00:02]} Bb5 {[%emt 0:00:10]} 38. Re3+ {[%emt 0:00:15]} Kd6 {[%emt 0:00:01]} 39. Bg8 {[%emt 0:00:05]} h6 {[%emt 0:00:06]} 40. f5 {[%emt 0:00:07]} Bc6+ {[%emt 0:00:10]} 41. Kg3 {[%emt 0:00:22]} Bb5 {[%emt 0:00:29]} 42. Re6+ {[%emt 0:00:11]} Kd7 {[%emt 0:00:05]} 43. Re3 {[%emt 0:00:02]} Kd6 {[%emt 0:00:00]} 44. h4 {[%emt 0:00:06]} Rg1+ {[%emt 0:00:03]} 45. Kf4 {[%emt 0:00:03]} Rf1+ {[%emt 0:00:04]} 46. Ke4 {[%emt 0:00:29]} Bc6+ {[%emt 0:00:03]} 47. Kd3 {[%emt 0:00:08]} Bb5+ {[%emt 0:00:05]} 48. Kc3 {[%emt 0:00:02]} Rg1 {[%emt 0:00:18]} 49. Re6+ {[%emt 0:00:02]} Kd7 {[%emt 0:00:00]} 50. Rg6 {[%emt 0:00:01]} Ke7 {[%emt 0:00:08]} 51. Rxg7+ {[%emt 0:00:14]} Kf8 {[%emt 0:00:01]} 52. f6 {[%emt 0:00:03]} Rg3+ {[%emt 0:00:06]} 53. Kd4 {[%emt 0:00:02]} Be2 {[%emt 0:00:12]} 54. g5 {[%emt 0:00:02]} Rg4+ {[%emt 0:00:18]} 55. Ke5 {[%emt 0:00:04]} Rxh4 {[%emt 0:00:05]} 56. Be6 {[%emt 0:00:03]} 1-0

[Event "ESP-ch Rapid 2018"]
[Site "Linares"]
[Date "2018.08.19"]
[Round "8"]
[White "Centron Antuna, Daniel"]
[Black "Suarez Uriel, Adrian"]
[Result "0-1"]
[ECO "D91"]
[WhiteElo "2231"]
[BlackElo "2391"]
[Annotator "NA"]
[PlyCount "80"]
[EventDate "2018.08.19"]
[EventType "team-tourn"]
[EventCountry "ESP"]
[SourceTitle "playchess.com"]
[Source "ChessBase"]
[SourceQuality "1"]
[TimeControl "900+5"]

1. Nf3 {[%emt 0:00:00]} Nf6 {[%emt 0:00:00]} 2. c4 {[%emt 0:00:00]} g6 {[%emt 0:00:00]} 3. Nc3 {[%emt 0:00:05]} Bg7 {[%emt 0:00:00]} 4. d4 {[%emt 0:00:02]} d5 {[%emt 0:00:00]} 5. Bg5 {[%emt 0:00:06]} Ne4 {[%emt 0:00:02]} 6. Bf4 {[%emt 0:00:01]} Nxc3 {[%emt 0:00:03]} 7. bxc3 {[%emt 0:00:02]} c5 {[%emt 0:00:05]} 8. e3 {[%emt 0:00:03]} O-O {[%emt 0:00:03]} 9. cxd5 {[%emt 0:00:30]} Qxd5 {[%emt 0:00:02]} 10. Qb3 {[%emt 0:00:07]} Be6 {[%emt 0:00:19]} 11. c4 {[%emt 0:00:30]} Qd8 {[%emt 0:00:26]} 12. Rc1 {[%emt 0:01:38]} Qa5+ {[%emt 0:00:33]} 13. Qc3 {[%emt 0:00:49]} Qxc3+ {[%emt 0:00:01]} 14. Rxc3 {[%emt 0:00:02]} Nc6 {[%emt 0:00:04]} 15. Rb3 {[%emt 0:00:38]} cxd4 {[%emt 0:00:02]} 16. Rxb7 {[%emt 0:00:06]} dxe3 {[%emt 0:00:14]} 17. Bxe3 {[%emt 0:00:26]} Rab8 {[%emt 0:00:07]} 18. Rb5 {[%emt 0:00:33]} a6 {[%emt 0:00:02]} 19. Rb6 {[%emt 0:00:10]} Nb4 {[%emt 0:00:29]} 20. c5 {[%emt 0:01:25]} Rfd8 {[%emt 0:00:01]} 21. Be2 {[%emt 0:01:16]} Bc3+ {[%emt 0:00:51]} 22. Kf1 {[%emt 0:00:07]} Bxa2 {[%emt 0:00:19]} 23. Bf4 {[%emt 0:00:55]} Rbc8 {[%emt 0:00:06]} 24. Be3 {[%emt 0:01:24]} a5 {[%emt 0:00:01]} 25. g3 {[%emt 0:00:29]} Nd5 {[%emt 0:00:02]} 26. Rb5 {[%emt 0:00:19]} Nxe3+ {[%emt 0:00:10]} 27. fxe3 {[%emt 0:00:03]} Rd5 {[%emt 0:00:11]} 28. Kf2 {[%emt 0:00:43]} Rdxc5 {[%emt 0:00:02]} 29. Rxc5 {[%emt 0:00:04]} Rxc5 {[%emt 0:00:01]} 30. Rc1 {[%emt 0:00:04]} Bb4 {[%emt 0:00:02]} 31. Rd1 {[%emt 0:00:05]} Rc2 {[%emt 0:00:07]} 32. Rd8+ {[%emt 0:00:12]} Kg7 {[%emt 0:00:01]} 33. Nd4 {[%emt 0:00:01]} Rb2 {[%emt 0:00:06]} 34. Kf3 {[%emt 0:00:03]} e5 {[%emt 0:00:08]} 35. Nc6 {[%emt 0:00:23]} e4+ {[%emt 0:00:01]} 36. Kf2 {[%emt 0:00:09]} Bc4 {[%emt 0:00:06]} 37. Nd4 {[%emt 0:00:02]} a4 {[%emt 0:00:19]} 38. Rc8 {[%emt 0:00:38]} Bxe2 {[%emt 0:00:12]} 39. Nxe2 {[%emt 0:00:01]} a3 {[%emt 0:00:01]} 40. Ra8 {[%emt 0:00:12]} a2 {[%emt 0:00:02]} 0-1